[Event "Live Chess"]
[Site "Chess.com"]
[Date "2024.06.01"]
[Round "-"]
[White "dhairyapandyauk"]
[Black "MaksymYurii"]
[Result "1-0"]
[WhiteElo "1645"]
[BlackElo "934"]
[TimeControl "300"]
[EndTime "12:10:00 PDT"]
[Termination "dhairyapandyauk won by resignation"]

1. e4 {[%clk 0:04:58.1]} 1... e5 {[%clk 0:04:58.7]} 2. Nf3 {[%clk 0:04:57.4]}
2... Nc6 {[%clk 0:04:57.5]} 3. c3 {[%clk 0:04:56.9]} 3... d6 {[%clk 0:04:56.5]}
4. d4 {[%clk 0:04:56.5]} 4... exd4 {[%clk 0:04:54.4]} 5. cxd4 {[%clk 0:04:56.2]}
5... Bg4 {[%clk 0:04:52.5]} 6. Bc4 {[%clk 0:04:49.6]} 6... Bxf3 {[%clk
0:04:45.6]} 7. Qxf3 {[%clk 0:04:49.1]} 7... Qe7 {[%clk 0:04:39.3]} 8. Be3 {[%clk
0:04:42]} 8... Nf6 {[%clk 0:04:34.8]} 9. Nc3 {[%clk 0:04:41.2]} 9... O-O-O
{[%clk 0:04:24.9]} 10. O-O-O {[%clk 0:04:39.3]} 10... Nb4 {[%clk 0:04:17.9]} 11.
a3 {[%clk 0:04:25.7]} 11... Nc6 {[%clk 0:04:04.8]} 12. Rhe1 {[%clk 0:04:20.9]}
12... d5 {[%clk 0:04:01]} 13. Nxd5 {[%clk 0:04:08.1]} 13... Nxd5 {[%clk
0:03:51.4]} 14. Bxd5 {[%clk 0:04:06.9]} 14... Nb4 {[%clk 0:03:48.5]} 15. axb4
{[%clk 0:04:05.3]} 15... Qxb4 {[%clk 0:03:46.9]} 16. Bd2 {[%clk 0:03:58.7]}
16... Qxd4 {[%clk 0:03:30.5]} 17. Qb3 {[%clk 0:03:49.9]} 17... Qc5+ {[%clk
0:03:15.6]} 18. Kb1 {[%clk 0:03:47.1]} 18... b6 {[%clk 0:03:09.2]} 19. Be3
{[%clk 0:03:44.5]} 19... Qa5 {[%clk 0:03:03.7]} 20. Bd2 {[%clk 0:03:22.3]} 20...
Qc5 {[%clk 0:02:55.6]} 21. Qa4 {[%clk 0:03:16.4]} 21... a5 {[%clk 0:02:43.4]}
22. Rc1 {[%clk 0:03:07.7]} 22... Qxf2 {[%clk 0:02:20.6]} 23. Be3 {[%clk
0:02:50.1]} 23... Qxg2 {[%clk 0:02:04.7]} 24. Rxc7+ {[%clk 0:02:45.9]} 24...
Kxc7 {[%clk 0:02:02.1]} 25. Qc6+ {[%clk 0:02:44.9]} 1-0

[Event "Live Chess"]
[Site "Chess.com"]
[Date "2024.06.01"]
[Round "-"]
[White "DarranAS"]
[Black "wadsy27"]
[Result "1-0"]
[WhiteElo "1519"]
[BlackElo "2574"]
[TimeControl "300"]
[EndTime "12:10:16 PDT"]
[Termination "DarranAS won - game abandoned"]

1. d4 {[%clk 0:04:54.9]} 1... Nf6 {[%clk 0:04:57.8]} 2. Nf3 {[%clk 0:04:52.2]}
2... g6 {[%clk 0:04:57.1]} 3. g3 {[%clk 0:04:49.2]} 3... Bg7 {[%clk 0:04:53.2]}
4. Bg2 {[%clk 0:04:48]} 4... O-O {[%clk 0:04:51.2]} 5. c3 {[%clk 0:04:46]} 5...
d5 {[%clk 0:04:49.2]} 6. Bf4 {[%clk 0:04:38.9]} 6... a5 {[%clk 0:04:44.5]} 7.
O-O {[%clk 0:04:34.1]} 7... b6 {[%clk 0:04:33.2]} 8. Nbd2 {[%clk 0:04:27.7]}
8... Ba6 {[%clk 0:04:31.1]} 9. Re1 {[%clk 0:04:24.7]} 9... Nh5 {[%clk
0:04:25.2]} 10. e4 {[%clk 0:04:19.6]} 10... Nxf4 {[%clk 0:04:24.1]} 11. gxf4
{[%clk 0:04:18.4]} 11... dxe4 {[%clk 0:04:23.6]} 12. Nxe4 {[%clk 0:04:16.4]}
12... Bb7 {[%clk 0:04:22.3]} 13. Qd2 {[%clk 0:03:37.2]} 13... Nd7 {[%clk
0:04:21]} 14. Rad1 {[%clk 0:03:33.8]} 14... Nf6 {[%clk 0:04:19.9]} 15. Nfg5
{[%clk 0:03:26]} 15... Nxe4 {[%clk 0:04:19.3]} 16. Nxe4 {[%clk 0:03:23.6]} 16...
Rb8 {[%clk 0:04:18.4]} 17. Qe3 {[%clk 0:02:45.8]} 17... e6 {[%clk 0:04:02.5]}
18. Qh3 {[%clk 0:02:38.5]} 18... h6 {[%clk 0:03:54.7]} 19. Bf3 {[%clk
0:02:27.6]} 1-0

[Event "Live Chess"]
[Site "Chess.com"]
[Date "2024.06.01"]
[Round "-"]
[White "TigerTank70"]
[Black "ProfPoisson"]
[Result "1-0"]
[WhiteElo "2193"]
[BlackElo "1278"]
[TimeControl "300"]
[EndTime "12:10:31 PDT"]
[Termination "TigerTank70 won by resignation"]

1. e4 {[%clk 0:04:58.4]} 1... e5 {[%clk 0:04:57.5]} 2. Nf3 {[%clk 0:04:57.3]}
2... Nf6 {[%clk 0:04:56.2]} 3. Nxe5 {[%clk 0:04:55.8]} 3... Nxe4 {[%clk
0:04:54.7]} 4. d3 {[%clk 0:04:54.1]} 4... Qe7 {[%clk 0:04:51.1]} 5. dxe4 {[%clk
0:04:52.1]} 5... Qxe5 {[%clk 0:04:49.6]} 6. Bd3 {[%clk 0:04:51.1]} 6... Bc5
{[%clk 0:04:39.4]} 7. O-O {[%clk 0:04:49.9]} 7... O-O {[%clk 0:04:36.8]} 8. Nd2
{[%clk 0:04:47.5]} 8... Bd6 {[%clk 0:04:31.9]} 9. Nf3 {[%clk 0:04:46.2]} 9...
Qf6 {[%clk 0:04:21.7]} 10. Bg5 {[%clk 0:04:44.1]} 10... Qxb2 {[%clk 0:04:11.6]}
11. Rb1 {[%clk 0:04:39.6]} 11... Qxa2 {[%clk 0:04:05]} 12. e5 {[%clk 0:04:38.5]}
12... Bc5 {[%clk 0:03:45.5]} 13. Nd2 {[%clk 0:04:24.6]} 13... Qe6 {[%clk
0:03:28.9]} 14. Kh1 {[%clk 0:04:12]} 14... d6 {[%clk 0:03:25.7]} 15. exd6 {[%clk
0:04:02.5]} 15... Qg4 {[%clk 0:03:18.9]} 16. Nf3 {[%clk 0:03:42.9]} 16... Bxd6
{[%clk 0:03:14.7]} 17. h3 {[%clk 0:03:39]} 17... Qh5 {[%clk 0:03:03]} 18. Kg1
{[%clk 0:02:54.3]} 18... Nc6 {[%clk 0:02:53.4]} 19. Rb5 {[%clk 0:02:37.1]} 19...
h6 {[%clk 0:02:33.8]} 20. Be7 {[%clk 0:02:16.4]} 20... Qxb5 {[%clk 0:02:08.8]}
21. Bxb5 {[%clk 0:02:13.7]} 21... Bxe7 {[%clk 0:02:07.7]} 22. c4 {[%clk
0:02:06.9]} 22... a6 {[%clk 0:02:03]} 23. Ba4 {[%clk 0:02:05.5]} 23... Rd8
{[%clk 0:01:56]} 24. Qe2 {[%clk 0:02:02.5]} 24... Bf6 {[%clk 0:01:44.2]} 25. Qe4
{[%clk 0:01:56.1]} 25... Nd4 {[%clk 0:01:37]} 26. Nxd4 {[%clk 0:01:53]} 26...
Rxd4 {[%clk 0:01:33]} 27. Qe8+ {[%clk 0:01:51.6]} 27... Kh7 {[%clk 0:01:31.6]}
28. Bc2+ {[%clk 0:01:48.2]} 28... g6 {[%clk 0:01:19.5]} 29. Qxf7+ {[%clk
0:01:45.2]} 29... Kh8 {[%clk 0:01:18.1]} 30. Qxf6+ {[%clk 0:01:44.1]} 1-0

[Event "Live Chess"]
[Site "Chess.com"]
[Date "2024.06.01"]
[Round "-"]
[White "WorcesterYork"]
[Black "Dhaydon19"]
[Result "0-1"]
[WhiteElo "2542"]
[BlackElo "2695"]
[TimeControl "300"]
[EndTime "12:10:52 PDT"]
[Termination "Dhaydon19 won by resignation"]

1. d4 {[%clk 0:04:58.4]} 1... c6 {[%clk 0:04:58.8]} 2. Bg5 {[%clk 0:04:57.6]}
2... d5 {[%clk 0:04:58]} 3. Nc3 {[%clk 0:04:56.9]} 3... Nf6 {[%clk 0:04:57.7]}
4. Bxf6 {[%clk 0:04:55.7]} 4... exf6 {[%clk 0:04:56.6]} 5. e3 {[%clk 0:04:55.2]}
5... g6 {[%clk 0:04:56.2]} 6. Bd3 {[%clk 0:04:54.4]} 6... Bg7 {[%clk 0:04:55.7]}
7. h4 {[%clk 0:04:54.1]} 7... h5 {[%clk 0:04:53.9]} 8. Nge2 {[%clk 0:04:53.4]}
8... f5 {[%clk 0:04:53.1]} 9. Nf4 {[%clk 0:04:52.6]} 9... Nd7 {[%clk 0:04:52.8]}
10. Nce2 {[%clk 0:04:51.1]} 10... Nf6 {[%clk 0:04:52.3]} 11. c4 {[%clk
0:04:50.2]} 11... O-O {[%clk 0:04:51.9]} 12. cxd5 {[%clk 0:04:49.2]} 12... Nxd5
{[%clk 0:04:50.9]} 13. Nxd5 {[%clk 0:04:48.2]} 13... Qxd5 {[%clk 0:04:50.3]} 14.
Nf4 {[%clk 0:04:47.5]} 14... Qa5+ {[%clk 0:04:49.4]} 15. Qd2 {[%clk 0:04:47]}
15... Qc7 {[%clk 0:04:46.2]} 16. Qc2 {[%clk 0:04:44.7]} 16... Bxd4 {[%clk
0:04:39.7]} 17. Nxg6 {[%clk 0:04:41.9]} 17... fxg6 {[%clk 0:04:38.6]} 18. exd4
{[%clk 0:04:40.5]} 18... Re8+ {[%clk 0:04:34.1]} 19. Kf1 {[%clk 0:04:38.7]}
19... Be6 {[%clk 0:04:32.9]} 20. b3 {[%clk 0:04:34.5]} 20... Qd6 {[%clk
0:04:31.2]} 21. Rd1 {[%clk 0:04:33]} 21... Rad8 {[%clk 0:04:26.7]} 22. Kg1
{[%clk 0:04:30.8]} 22... Qxd4 {[%clk 0:04:21.1]} 23. Rh3 {[%clk 0:04:28.5]}
23... Kg7 {[%clk 0:04:15.7]} 24. Be2 {[%clk 0:04:23.7]} 24... Qf6 {[%clk
0:04:11.6]} 25. Rxd8 {[%clk 0:04:20.2]} 25... Rxd8 {[%clk 0:04:10.6]} 26. Re3
{[%clk 0:04:14]} 26... f4 {[%clk 0:04:08.5]} 27. Rd3 {[%clk 0:04:11.1]} 27...
Bf5 {[%clk 0:04:07]} 0-1

[Event "Live Chess"]
[Site "Chess.com"]
[Date "2024.06.01"]
[Round "-"]
[White "PaulHumphreys"]
[Black "JanMur7"]
[Result "0-1"]
[WhiteElo "1394"]
[BlackElo "2288"]
[TimeControl "300"]
[EndTime "12:10:57 PDT"]
[Termination "JanMur7 won by resignation"]

1. d4 {[%clk 0:04:57.6]} 1... Nf6 {[%clk 0:04:58.6]} 2. Nc3 {[%clk 0:04:57.5]}
2... d5 {[%clk 0:04:57.1]} 3. Bf4 {[%clk 0:04:56.6]} 3... c6 {[%clk 0:04:56]} 4.
e3 {[%clk 0:04:55.6]} 4... Bf5 {[%clk 0:04:54.6]} 5. Nf3 {[%clk 0:04:54.3]} 5...
Qb6 {[%clk 0:04:50.8]} 6. Rb1 {[%clk 0:04:42.3]} 6... e6 {[%clk 0:04:48]} 7. Ne5
{[%clk 0:04:40.6]} 7... Nbd7 {[%clk 0:04:46.2]} 8. g4 {[%clk 0:04:37.4]} 8...
Nxe5 {[%clk 0:04:22.7]} 9. dxe5 {[%clk 0:04:32.6]} 9... Nxg4 {[%clk 0:04:12.4]}
10. Bd3 {[%clk 0:04:24.4]} 10... Nh6 {[%clk 0:03:59.6]} 11. Bxh6 {[%clk
0:04:18.9]} 11... Bxd3 {[%clk 0:03:52.5]} 12. Bxg7 {[%clk 0:04:01.2]} 12... Bxc2
{[%clk 0:03:38.3]} 13. Qxc2 {[%clk 0:04:00.5]} 13... Bxg7 {[%clk 0:03:37.5]} 14.
Rg1 {[%clk 0:03:58.6]} 14... Bxe5 {[%clk 0:03:34.3]} 15. f4 {[%clk 0:03:50]}
15... Qxe3+ {[%clk 0:03:31.8]} 0-1

[Event "Live Chess"]
[Site "Chess.com"]
[Date "2024.06.01"]
[Round "-"]
[White "MagnersCarlsberg2870"]
[Black "Bradfield133"]
[Result "0-1"]
[WhiteElo "1852"]
[BlackElo "1925"]
[TimeControl "300"]
[EndTime "12:11:10 PDT"]
[Termination "Bradfield133 won by resignation"]

1. d4 {[%clk 0:04:57.1]} 1... d6 {[%clk 0:04:58.2]} 2. Nf3 {[%clk 0:04:52.7]}
2... Bg4 {[%clk 0:04:51.4]} 3. Nc3 {[%clk 0:04:51.1]} 3... Nd7 {[%clk 0:04:48]}
4. e4 {[%clk 0:04:48.2]} 4... e5 {[%clk 0:04:45.7]} 5. Bc4 {[%clk 0:04:46]} 5...
Ngf6 {[%clk 0:04:40.6]} 6. h3 {[%clk 0:04:38.5]} 6... Bxf3 {[%clk 0:04:36.2]} 7.
gxf3 {[%clk 0:04:35.1]} 7... Be7 {[%clk 0:04:31.1]} 8. Bg5 {[%clk 0:04:30]} 8...
O-O {[%clk 0:04:28.8]} 9. Rg1 {[%clk 0:04:29]} 9... exd4 {[%clk 0:04:19.5]} 10.
Qxd4 {[%clk 0:04:27.4]} 10... Ne5 {[%clk 0:04:18.4]} 11. Bh6 {[%clk 0:04:24.4]}
11... Ng6 {[%clk 0:04:03.5]} 12. Bg5 {[%clk 0:04:16.9]} 12... Nh5 {[%clk
0:03:39.1]} 13. Bxe7 {[%clk 0:04:12.7]} 13... Qxe7 {[%clk 0:03:32.4]} 14. Nd5
{[%clk 0:04:11.7]} 14... Qd7 {[%clk 0:03:27.7]} 15. O-O-O {[%clk 0:04:08.6]}
15... Ne5 {[%clk 0:03:15.6]} 16. Rg5 {[%clk 0:03:55.6]} 16... Nxf3 {[%clk
0:03:11.7]} 17. Qe3 {[%clk 0:03:41.8]} 17... Nxg5 {[%clk 0:03:01.8]} 18. Qxg5
{[%clk 0:03:40.6]} 18... c6 {[%clk 0:02:51.5]} 19. Ne7+ {[%clk 0:03:26]} 19...
Kh8 {[%clk 0:02:49.2]} 20. Nf5 {[%clk 0:03:24.3]} 20... g6 {[%clk 0:02:36.9]}
21. Rxd6 {[%clk 0:03:22]} 21... Qe8 {[%clk 0:02:19.6]} 22. Be2 {[%clk
0:02:49.3]} 22... Qxe4 {[%clk 0:02:00.2]} 23. Bxh5 {[%clk 0:02:45.5]} 23... Qxf5
{[%clk 0:01:59.2]} 24. Qxf5 {[%clk 0:02:24.3]} 24... gxf5 {[%clk 0:01:57.7]} 25.
Rf6 {[%clk 0:02:23.5]} 25... Kg7 {[%clk 0:01:54.6]} 26. Rxf5 {[%clk 0:02:22.1]}
26... Rad8 {[%clk 0:01:49.5]} 27. b3 {[%clk 0:02:16]} 27... Rd5 {[%clk
0:01:45.3]} 28. Rxd5 {[%clk 0:02:05.8]} 28... cxd5 {[%clk 0:01:44.2]} 29. Bf3
{[%clk 0:02:04.7]} 29... Rd8 {[%clk 0:01:37.6]} 30. c4 {[%clk 0:02:03.7]} 30...
dxc4 {[%clk 0:01:35.3]} 31. Bxb7 {[%clk 0:02:01.7]} 31... cxb3 {[%clk
0:01:32.2]} 32. axb3 {[%clk 0:02:00.7]} 32... Rd3 {[%clk 0:01:26.1]} 33. Kc2
{[%clk 0:01:56]} 33... Rxh3 {[%clk 0:01:24.3]} 0-1

[Event "Live Chess"]
[Site "Chess.com"]
[Date "2024.06.01"]
[Round "-"]
[White "WeakOldFinished"]
[Black "JohanKjeldahl"]
[Result "1-0"]
[WhiteElo "2156"]
[BlackElo "1830"]
[TimeControl "300"]
[EndTime "12:11:13 PDT"]
[Termination "WeakOldFinished won by resignation"]

1. f4 {[%clk 0:04:51.8]} 1... e5 {[%clk 0:04:57.5]} 2. fxe5 {[%clk 0:04:49.8]}
2... d6 {[%clk 0:04:56.5]} 3. Nf3 {[%clk 0:04:48.8]} 3... dxe5 {[%clk
0:04:53.9]} 4. e4 {[%clk 0:04:47.7]} 4... Bd6 {[%clk 0:04:51.9]} 5. Bc4 {[%clk
0:04:41.5]} 5... Nf6 {[%clk 0:04:50.3]} 6. d3 {[%clk 0:04:39.8]} 6... O-O {[%clk
0:04:48.4]} 7. O-O {[%clk 0:04:38.4]} 7... Bg4 {[%clk 0:04:44.9]} 8. Qe1 {[%clk
0:04:32.9]} 8... Nbd7 {[%clk 0:04:40.6]} 9. Nc3 {[%clk 0:04:27.8]} 9... c6
{[%clk 0:04:38.3]} 10. a4 {[%clk 0:04:26.1]} 10... Bh5 {[%clk 0:04:23.1]} 11.
Nh4 {[%clk 0:04:22.5]} 11... Bg6 {[%clk 0:04:17.9]} 12. Nxg6 {[%clk 0:04:21]}
12... hxg6 {[%clk 0:04:16.4]} 13. Bg5 {[%clk 0:04:20.9]} 13... Qb6+ {[%clk
0:04:10.5]} 14. Kh1 {[%clk 0:04:19]} 14... Be7 {[%clk 0:03:45.1]} 15. Nd1 {[%clk
0:03:54.6]} 15... Qb4 {[%clk 0:03:27]} 16. c3 {[%clk 0:03:52.8]} 16... Qd6
{[%clk 0:03:24.8]} 17. Ne3 {[%clk 0:03:50.8]} 17... Nh5 {[%clk 0:03:14.4]} 18.
Bxe7 {[%clk 0:03:34.4]} 18... Qxe7 {[%clk 0:03:12.7]} 19. Rf3 {[%clk 0:03:32.5]}
19... Nf4 {[%clk 0:02:58.2]} 20. Qf2 {[%clk 0:03:20.7]} 20... Nf6 {[%clk
0:02:55.9]} 21. Rf1 {[%clk 0:03:18.6]} 21... Qd7 {[%clk 0:02:28.8]} 22. Rxf4
{[%clk 0:03:14.1]} 22... exf4 {[%clk 0:02:26.6]} 23. Qxf4 {[%clk 0:03:14]} 23...
Rad8 {[%clk 0:02:14.7]} 24. d4 {[%clk 0:03:01.2]} 24... b5 {[%clk 0:02:10.8]}
25. axb5 {[%clk 0:02:56.5]} 25... cxb5 {[%clk 0:02:09.8]} 26. Bb3 {[%clk
0:02:55.7]} 26... a5 {[%clk 0:02:07.3]} 27. e5 {[%clk 0:02:54.7]} 27... Nh5
{[%clk 0:02:02.7]} 28. Qg5 {[%clk 0:02:53.3]} 28... Ra8 {[%clk 0:01:38.8]} 29.
Qxg6 {[%clk 0:02:50.1]} 1-0

[Event "Live Chess"]
[Site "Chess.com"]
[Date "2024.06.01"]
[Round "-"]
[White "WelshTiger"]
[Black "KwikPhoenix"]
[Result "1-0"]
[WhiteElo "2541"]
[BlackElo "2450"]
[TimeControl "300"]
[EndTime "12:11:20 PDT"]
[Termination "WelshTiger won by resignation"]

1. e4 {[%clk 0:04:56.6]} 1... c5 {[%clk 0:04:49.7]} 2. Nf3 {[%clk 0:04:55.5]}
2... Nc6 {[%clk 0:04:48.6]} 3. Bb5 {[%clk 0:04:54.3]} 3... g6 {[%clk 0:04:47.6]}
4. O-O {[%clk 0:04:51.2]} 4... Bg7 {[%clk 0:04:47.2]} 5. c3 {[%clk 0:04:49.9]}
5... Nf6 {[%clk 0:04:42.9]} 6. Qa4 {[%clk 0:04:48.9]} 6... O-O {[%clk
0:04:38.5]} 7. d4 {[%clk 0:04:47.4]} 7... cxd4 {[%clk 0:04:37.7]} 8. cxd4 {[%clk
0:04:47.3]} 8... a6 {[%clk 0:04:34.5]} 9. Nc3 {[%clk 0:04:44.1]} 9... Rb8 {[%clk
0:04:28.8]} 10. Bd3 {[%clk 0:04:35.2]} 10... d6 {[%clk 0:04:20.8]} 11. h3 {[%clk
0:04:33.4]} 11... b5 {[%clk 0:04:18.6]} 12. Qd1 {[%clk 0:04:31.6]} 12... Bb7
{[%clk 0:04:17.2]} 13. Bg5 {[%clk 0:04:24.9]} 13... h6 {[%clk 0:04:14.9]} 14.
Be3 {[%clk 0:04:19.1]} 14... Rc8 {[%clk 0:03:55.4]} 15. Rc1 {[%clk 0:04:13.6]}
15... e6 {[%clk 0:03:48]} 16. Qd2 {[%clk 0:04:03.7]} 16... Kh7 {[%clk 0:03:46]}
17. Rfd1 {[%clk 0:04:03.3]} 17... d5 {[%clk 0:03:44.7]} 18. e5 {[%clk
0:04:00.4]} 18... Nd7 {[%clk 0:03:43.6]} 19. h4 {[%clk 0:03:59.1]} 19... Nb6
{[%clk 0:03:37.6]} 20. b3 {[%clk 0:03:57]} 20... Qe7 {[%clk 0:03:26.7]} 21. h5
{[%clk 0:03:55.6]} 21... Nd7 {[%clk 0:03:00.7]} 22. g3 {[%clk 0:03:49]} 22...
Rh8 {[%clk 0:02:39.5]} 23. Nh4 {[%clk 0:03:47.4]} 23... Nf8 {[%clk 0:02:28.5]}
24. Ne2 {[%clk 0:03:31.9]} 24... Kg8 {[%clk 0:02:00.3]} 25. hxg6 {[%clk
0:03:30.4]} 25... fxg6 {[%clk 0:01:59.8]} 26. Nxg6 {[%clk 0:03:27]} 26... Nxg6
{[%clk 0:01:59.7]} 27. Bxg6 {[%clk 0:03:25.8]} 27... Rf8 {[%clk 0:01:58.2]} 28.
Nf4 {[%clk 0:03:20.4]} 28... Nd8 {[%clk 0:01:43.1]} 29. Bb1 {[%clk 0:03:15.2]}
1-0

[Event "Live Chess"]
[Site "Chess.com"]
[Date "2024.06.01"]
[Round "-"]
[White "CarmelJane"]
[Black "gmnorfolk"]
[Result "1-0"]
[WhiteElo "2091"]
[BlackElo "2064"]
[TimeControl "300"]
[EndTime "12:11:24 PDT"]
[Termination "CarmelJane won by resignation"]

1. e4 {[%clk 0:04:57.8]} 1... c5 {[%clk 0:04:56]} 2. Nf3 {[%clk 0:04:56.3]} 2...
d6 {[%clk 0:04:54.8]} 3. c3 {[%clk 0:04:54.9]} 3... Nf6 {[%clk 0:04:52.6]} 4.
Be2 {[%clk 0:04:53.4]} 4... e6 {[%clk 0:04:47.7]} 5. O-O {[%clk 0:04:51.3]} 5...
Nc6 {[%clk 0:04:46.8]} 6. Bd3 {[%clk 0:04:39.8]} 6... Be7 {[%clk 0:04:37.4]} 7.
Bc2 {[%clk 0:04:37.2]} 7... O-O {[%clk 0:04:30]} 8. d4 {[%clk 0:04:34.2]} 8...
cxd4 {[%clk 0:04:26.8]} 9. cxd4 {[%clk 0:04:34.1]} 9... e5 {[%clk 0:04:25.3]}
10. h3 {[%clk 0:04:24.5]} 10... Bd7 {[%clk 0:04:08.3]} 11. a3 {[%clk 0:04:20.9]}
11... Rc8 {[%clk 0:04:03.4]} 12. Nc3 {[%clk 0:04:17.3]} 12... a6 {[%clk
0:03:55.4]} 13. Be3 {[%clk 0:03:56.3]} 13... b5 {[%clk 0:03:41.7]} 14. Qe2
{[%clk 0:03:37.9]} 14... Qc7 {[%clk 0:03:39.9]} 15. Rad1 {[%clk 0:03:34.8]}
15... Na5 {[%clk 0:03:33.1]} 16. Rc1 {[%clk 0:03:22.9]} 16... Nc4 {[%clk
0:03:30.4]} 17. Bb3 {[%clk 0:03:14.2]} 17... Rfd8 {[%clk 0:03:24.6]} 18. dxe5
{[%clk 0:03:08.8]} 18... dxe5 {[%clk 0:03:22.1]} 19. Nd5 {[%clk 0:02:59]} 19...
Nxd5 {[%clk 0:03:19.9]} 20. exd5 {[%clk 0:02:58.9]} 20... Bd6 {[%clk 0:03:15.7]}
21. Bxc4 {[%clk 0:02:48]} 21... bxc4 {[%clk 0:03:14.2]} 22. b3 {[%clk
0:02:47.2]} 22... c3 {[%clk 0:03:12.1]} 23. Qxa6 {[%clk 0:02:37.7]} 23... c2
{[%clk 0:03:03.1]} 24. Bb6 {[%clk 0:02:34.1]} 24... Qb8 {[%clk 0:03:01.3]} 25.
Bxd8 {[%clk 0:02:31.3]} 25... Bb5 {[%clk 0:02:59.5]} 26. Qb6 {[%clk 0:01:37.6]}
26... Qxb6 {[%clk 0:02:57.2]} 27. Bxb6 {[%clk 0:01:35.9]} 27... Bxf1 {[%clk
0:02:57.1]} 28. Kxf1 {[%clk 0:01:35.2]} 28... Bxa3 {[%clk 0:02:55.7]} 29. Be3
{[%clk 0:01:27.6]} 29... Bxc1 {[%clk 0:02:24]} 30. Bxc1 {[%clk 0:01:27.5]} 30...
e4 {[%clk 0:02:21.4]} 31. Nd4 {[%clk 0:01:22.4]} 31... Rc3 {[%clk 0:02:19.9]}
32. Ke2 {[%clk 0:00:55.3]} 32... Kf8 {[%clk 0:02:09]} 33. d6 {[%clk 0:00:54.4]}
33... Ke8 {[%clk 0:02:05.8]} 34. b4 {[%clk 0:00:51.5]} 34... Kd7 {[%clk
0:01:57.8]} 35. h4 {[%clk 0:00:42.8]} 35... g6 {[%clk 0:01:56.3]} 36. g4 {[%clk
0:00:40.5]} 36... f5 {[%clk 0:01:51]} 37. gxf5 {[%clk 0:00:39]} 37... gxf5
{[%clk 0:01:50]} 38. Nxf5 {[%clk 0:00:28.3]} 38... Rd3 {[%clk 0:01:43.9]} 39.
Ne3 {[%clk 0:00:24.4]} 39... Kxd6 {[%clk 0:01:42.6]} 40. Nxc2 {[%clk 0:00:22.3]}
40... Rh3 {[%clk 0:01:39.7]} 41. Bf4+ {[%clk 0:00:21.7]} 41... Kd5 {[%clk
0:01:38.3]} 42. Bg3 {[%clk 0:00:21.6]} 42... Kc4 {[%clk 0:01:36.8]} 43. Kf1
{[%clk 0:00:18.1]} 43... Kd3 {[%clk 0:01:32.9]} 44. Kg2 {[%clk 0:00:17.5]} 44...
e3 {[%clk 0:01:12.4]} 45. Nxe3 {[%clk 0:00:13.2]} 1-0

[Event "Live Chess"]
[Site "Chess.com"]
[Date "2024.06.01"]
[Round "-"]
[White "KeithArkell"]
[Black "Crowded_House"]
[Result "1-0"]
[WhiteElo "2487"]
[BlackElo "1743"]
[TimeControl "300"]
[EndTime "12:11:37 PDT"]
[Termination "KeithArkell won by resignation"]

1. d4 {[%clk 0:04:58.1]} 1... e6 {[%clk 0:04:58.7]} 2. Nf3 {[%clk 0:04:57.4]}
2... d5 {[%clk 0:04:57.8]} 3. Bg5 {[%clk 0:04:56.4]} 3... Be7 {[%clk 0:04:55.2]}
4. Bxe7 {[%clk 0:04:55.6]} 4... Qxe7 {[%clk 0:04:54.4]} 5. Nbd2 {[%clk
0:04:55.3]} 5... Nf6 {[%clk 0:04:53]} 6. e3 {[%clk 0:04:54.4]} 6... Nbd7 {[%clk
0:04:52]} 7. Bd3 {[%clk 0:04:53.6]} 7... O-O {[%clk 0:04:49.9]} 8. c3 {[%clk
0:04:52.9]} 8... b6 {[%clk 0:04:48.3]} 9. O-O {[%clk 0:04:51.8]} 9... Bb7 {[%clk
0:04:47]} 10. Re1 {[%clk 0:04:47.5]} 10... c5 {[%clk 0:04:45.4]} 11. e4 {[%clk
0:04:45.8]} 11... dxe4 {[%clk 0:04:43.8]} 12. Nxe4 {[%clk 0:04:45.1]} 12... Nxe4
{[%clk 0:04:42.7]} 13. Bxe4 {[%clk 0:04:44.5]} 13... Bxe4 {[%clk 0:04:41]} 14.
Rxe4 {[%clk 0:04:43.7]} 14... Nf6 {[%clk 0:04:40]} 15. Re2 {[%clk 0:04:40.7]}
15... cxd4 {[%clk 0:04:35.6]} 16. Nxd4 {[%clk 0:04:39.4]} 16... Rac8 {[%clk
0:04:26.8]} 17. Qd2 {[%clk 0:04:31.7]} 17... Rc7 {[%clk 0:04:10.7]} 18. Qg5
{[%clk 0:04:30.2]} 18... Nd5 {[%clk 0:04:03.6]} 19. Qxe7 {[%clk 0:04:26.7]}
19... Nxe7 {[%clk 0:04:02.1]} 20. g3 {[%clk 0:04:25.2]} 20... Rd8 {[%clk
0:03:58.9]} 21. a4 {[%clk 0:04:22.3]} 21... Rcd7 {[%clk 0:03:56.5]} 22. a5
{[%clk 0:04:19.7]} 22... bxa5 {[%clk 0:03:48.4]} 23. Rxa5 {[%clk 0:04:18.4]}
23... Rb8 {[%clk 0:03:40.6]} 24. Kg2 {[%clk 0:04:09]} 24... Rb6 {[%clk
0:03:32.7]} 25. b4 {[%clk 0:04:07.8]} 25... Nc6 {[%clk 0:03:29.1]} 26. Rc5
{[%clk 0:04:00.9]} 26... h6 {[%clk 0:03:17.1]} 27. Nxc6 {[%clk 0:03:58.1]} 27...
Rc7 {[%clk 0:03:01.3]} 28. Ne5 {[%clk 0:03:55.1]} 28... Rxc5 {[%clk 0:03:00.1]}
29. bxc5 {[%clk 0:03:54.3]} 29... Rb3 {[%clk 0:02:56.9]} 30. Rc2 {[%clk
0:03:51.8]} 30... a5 {[%clk 0:02:55.6]} 31. c6 {[%clk 0:03:51.1]} 31... Rb8
{[%clk 0:02:53.5]} 32. Rd2 {[%clk 0:03:48.9]} 32... a4 {[%clk 0:02:50.7]} 33. c7
{[%clk 0:03:48.2]} 33... Rc8 {[%clk 0:02:46.7]} 34. Rd8+ {[%clk 0:03:47]} 34...
Rxd8 {[%clk 0:02:46.6]} 35. cxd8=Q+ {[%clk 0:03:45.6]} 1-0

[Event "Live Chess"]
[Site "Chess.com"]
[Date "2024.06.01"]
[Round "-"]
[White "cymbalshift"]
[Black "Yegorych"]
[Result "1-0"]
[WhiteElo "1831"]
[BlackElo "1467"]
[TimeControl "300"]
[EndTime "12:11:40 PDT"]
[Termination "cymbalshift won by resignation"]

1. d4 {[%clk 0:04:58]} 1... d5 {[%clk 0:04:54.8]} 2. e4 {[%clk 0:04:56.9]} 2...
dxe4 {[%clk 0:04:52.5]} 3. Nc3 {[%clk 0:04:56.4]} 3... Nf6 {[%clk 0:04:50.8]} 4.
f3 {[%clk 0:04:55.8]} 4... Nc6 {[%clk 0:04:42.8]} 5. d5 {[%clk 0:04:53.1]} 5...
Nb4 {[%clk 0:04:38.8]} 6. fxe4 {[%clk 0:04:51.9]} 6... Bg4 {[%clk 0:04:34.6]} 7.
Nf3 {[%clk 0:04:48.9]} 7... e6 {[%clk 0:04:26.4]} 8. a3 {[%clk 0:04:47.5]} 8...
Na6 {[%clk 0:04:15.2]} 9. Bg5 {[%clk 0:04:42.4]} 9... Be7 {[%clk 0:04:01.6]} 10.
Bb5+ {[%clk 0:04:40.7]} 10... c6 {[%clk 0:03:58.3]} 11. dxc6 {[%clk 0:04:39.6]}
11... Qxd1+ {[%clk 0:03:53.1]} 12. Rxd1 {[%clk 0:04:39.2]} 12... O-O {[%clk
0:03:48.9]} 13. cxb7 {[%clk 0:04:38]} 1-0